[Event "Live Chess"]
[Site "Chess.com"]
[Date "2024.06.01"]
[Round "-"]
[White "halfberg"]
[Black "Dhaydon19"]
[Result "0-1"]
[WhiteElo "1903"]
[BlackElo "2699"]
[TimeControl "300"]
[EndTime "9:39:12 PDT"]
[Termination "Dhaydon19 won on time"]

1. e4 {[%clk 0:04:55.9]} 1... c6 {[%clk 0:04:59.7]} 2. d4 {[%clk 0:04:54.4]}
2... d5 {[%clk 0:04:59.3]} 3. Nc3 {[%clk 0:04:53.5]} 3... dxe4 {[%clk
0:04:58.4]} 4. Nxe4 {[%clk 0:04:52.7]} 4... Nf6 {[%clk 0:04:58.1]} 5. Ng3 {[%clk
0:04:50.9]} 5... g6 {[%clk 0:04:57.2]} 6. Nf3 {[%clk 0:04:50]} 6... Bg7 {[%clk
0:04:56.6]} 7. Be2 {[%clk 0:04:39.9]} 7... O-O {[%clk 0:04:55.6]} 8. O-O {[%clk
0:04:39.5]} 8... Nbd7 {[%clk 0:04:54.7]} 9. c3 {[%clk 0:04:37.4]} 9... Qc7
{[%clk 0:04:53.6]} 10. Bg5 {[%clk 0:04:33.5]} 10... e5 {[%clk 0:04:52.4]} 11.
Qd2 {[%clk 0:04:31.8]} 11... e4 {[%clk 0:04:50.8]} 12. Ne1 {[%clk 0:04:11.6]}
12... Re8 {[%clk 0:04:48.5]} 13. Bh6 {[%clk 0:04:05.3]} 13... Nf8 {[%clk
0:04:44.8]} 14. Bxg7 {[%clk 0:04:03.4]} 14... Kxg7 {[%clk 0:04:44.5]} 15. Nc2
{[%clk 0:03:58.9]} 15... h5 {[%clk 0:04:40.1]} 16. Rfe1 {[%clk 0:03:51.8]} 16...
N8h7 {[%clk 0:04:36.5]} 17. h3 {[%clk 0:03:42.8]} 17... Bd7 {[%clk 0:04:29.5]}
18. Ne3 {[%clk 0:03:25.3]} 18... Rad8 {[%clk 0:04:17.3]} 19. Nc4 {[%clk
0:03:16.7]} 19... Be6 {[%clk 0:04:14.5]} 20. Rad1 {[%clk 0:03:11.9]} 20... b5
{[%clk 0:04:13]} 21. Ne5 {[%clk 0:03:09.7]} 21... c5 {[%clk 0:04:11.5]} 22. Bxb5
{[%clk 0:03:05.2]} 22... Rf8 {[%clk 0:04:10.4]} 23. Qe3 {[%clk 0:02:50.1]} 23...
Qb6 {[%clk 0:04:05.6]} 24. a4 {[%clk 0:02:41.7]} 24... a6 {[%clk 0:04:02.8]} 25.
dxc5 {[%clk 0:02:40.4]} 25... Qc7 {[%clk 0:03:58.9]} 26. Nc6 {[%clk 0:02:25.4]}
26... Rxd1 {[%clk 0:03:55.3]} 27. Rxd1 {[%clk 0:02:21.5]} 27... axb5 {[%clk
0:03:54.9]} 28. axb5 {[%clk 0:02:20.2]} 28... Bc4 {[%clk 0:03:54.3]} 29. Nxe4
{[%clk 0:02:08.4]} 29... Bxb5 {[%clk 0:03:51.3]} 30. Nxf6 {[%clk 0:02:05.6]}
30... Nxf6 {[%clk 0:03:50.9]} 31. Ne5 {[%clk 0:01:58.9]} 31... Re8 {[%clk
0:03:46.4]} 32. f4 {[%clk 0:01:55.5]} 32... Ba4 {[%clk 0:03:43.9]} 33. Rd6
{[%clk 0:01:50.3]} 33... Bb3 {[%clk 0:03:40.7]} 34. Qd4 {[%clk 0:01:47.1]} 34...
Qe7 {[%clk 0:03:27.8]} 35. Nd7 {[%clk 0:01:30.2]} 35... Be6 {[%clk 0:03:25.8]}
36. Ne5 {[%clk 0:01:08.6]} 36... h4 {[%clk 0:03:22]} 37. b4 {[%clk 0:01:03.4]}
37... Ra8 {[%clk 0:03:13.6]} 38. c6 {[%clk 0:00:50.9]} 38... Kg8 {[%clk
0:03:12.4]} 39. b5 {[%clk 0:00:38]} 39... Ra1+ {[%clk 0:03:07.3]} 40. Kh2 {[%clk
0:00:36.5]} 40... Ne8 {[%clk 0:02:56.3]} 41. Rd8 {[%clk 0:00:32.2]} 41... Kh7
{[%clk 0:02:55.4]} 42. b6 {[%clk 0:00:26]} 42... Rb1 {[%clk 0:02:50.4]} 43. b7
{[%clk 0:00:24.3]} 43... Qa3 {[%clk 0:02:47.9]} 44. b8=Q {[%clk 0:00:22]} 44...
Rxb8 {[%clk 0:02:37.2]} 45. Rxb8 {[%clk 0:00:21.5]} 45... Ng7 {[%clk 0:02:36.2]}
46. Ng4 {[%clk 0:00:19.6]} 46... Bxg4 {[%clk 0:02:27.4]} 47. hxg4 {[%clk
0:00:18.7]} 47... Qa1 {[%clk 0:02:24.9]} 48. c7 {[%clk 0:00:17.2]} 48... Qe1
{[%clk 0:02:24.4]} 49. Qd3 {[%clk 0:00:13.9]} 49... h3 {[%clk 0:02:16.6]} 50.
gxh3 {[%clk 0:00:10.9]} 50... Qf2+ {[%clk 0:02:14.9]} 51. Kh1 {[%clk 0:00:09.6]}
51... Qe1+ {[%clk 0:02:14.3]} 52. Kh2 {[%clk 0:00:09]} 52... Ne6 {[%clk
0:02:14.1]} 53. Rh8+ {[%clk 0:00:06.7]} 53... Kxh8 {[%clk 0:02:12.3]} 54. c8=Q+
{[%clk 0:00:06.3]} 54... Kh7 {[%clk 0:02:11.7]} 55. Qc5 {[%clk 0:00:03.3]} 55...
Nxf4 {[%clk 0:02:08.9]} 56. Qcd4 {[%clk 0:00:01.3]} 56... Nxd3 {[%clk
0:02:03.9]} 57. Qxd3 {[%clk 0:00:00.3]} 57... Qf2+ {[%clk 0:02:03.3]} 0-1

[Event "Live Chess"]
[Site "Chess.com"]
[Date "2024.06.01"]
[Round "-"]
[White "SirGerhard"]
[Black "blunderabit"]
[Result "1-0"]
[WhiteElo "2760"]
[BlackElo "1835"]
[TimeControl "300"]
[EndTime "9:39:15 PDT"]
[Termination "SirGerhard won by resignation"]

1. d4 {[%clk 0:04:58.2]} 1... d5 {[%clk 0:04:56.5]} 2. c4 {[%clk 0:04:57.1]}
2... dxc4 {[%clk 0:04:53.3]} 3. Nf3 {[%clk 0:04:56.4]} 3... Nf6 {[%clk
0:04:50.9]} 4. Nc3 {[%clk 0:04:55.7]} 4... a6 {[%clk 0:04:48]} 5. e4 {[%clk
0:04:54.7]} 5... b5 {[%clk 0:04:46.5]} 6. e5 {[%clk 0:04:53.8]} 6... Nd5 {[%clk
0:04:42.6]} 7. a4 {[%clk 0:04:53]} 7... e6 {[%clk 0:04:34.4]} 8. axb5 {[%clk
0:04:51.8]} 8... Nb6 {[%clk 0:04:32.8]} 9. Be3 {[%clk 0:04:50.7]} 9... Bb4
{[%clk 0:04:25.4]} 10. Nd2 {[%clk 0:04:46.9]} 10... Bxc3 {[%clk 0:04:13.2]} 11.
bxc3 {[%clk 0:04:45.2]} 11... Qd5 {[%clk 0:04:10.9]} 12. Qg4 {[%clk 0:04:43.1]}
12... g6 {[%clk 0:03:54.1]} 13. Be2 {[%clk 0:04:41.4]} 13... axb5 {[%clk
0:03:50.5]} 14. O-O {[%clk 0:04:40.1]} 14... Rxa1 {[%clk 0:03:35.2]} 15. Rxa1
{[%clk 0:04:38.2]} 15... h5 {[%clk 0:03:05.9]} 16. Qh4 {[%clk 0:04:28]} 16...
Qd7 {[%clk 0:02:32.5]} 17. Ne4 {[%clk 0:04:23.3]} 1-0

[Event "Live Chess"]
[Site "Chess.com"]
[Date "2024.06.01"]
[Round "-"]
[White "JohanKjeldahl"]
[Black "ihtiandr82"]
[Result "1-0"]
[WhiteElo "1795"]
[BlackElo "1514"]
[TimeControl "300"]
[EndTime "9:39:32 PDT"]
[Termination "JohanKjeldahl won by checkmate"]

1. e4 {[%clk 0:04:57.2]} 1... c5 {[%clk 0:04:59.4]} 2. Nf3 {[%clk 0:04:55.3]}
2... Nc6 {[%clk 0:04:56.6]} 3. d4 {[%clk 0:04:54.3]} 3... cxd4 {[%clk
0:04:56.1]} 4. Nxd4 {[%clk 0:04:52.9]} 4... e6 {[%clk 0:04:55.6]} 5. Nc3 {[%clk
0:04:51.8]} 5... Bb4 {[%clk 0:04:52.7]} 6. Be3 {[%clk 0:04:50]} 6... Nf6 {[%clk
0:04:50.7]} 7. Bd3 {[%clk 0:04:47.7]} 7... O-O {[%clk 0:04:47.3]} 8. O-O {[%clk
0:04:46.2]} 8... Bxc3 {[%clk 0:04:41]} 9. bxc3 {[%clk 0:04:44.2]} 9... d5 {[%clk
0:04:40.5]} 10. exd5 {[%clk 0:04:40.7]} 10... Nxd5 {[%clk 0:04:39.9]} 11. Bd2
{[%clk 0:04:37]} 11... Nce7 {[%clk 0:04:27.7]} 12. Rb1 {[%clk 0:04:32.3]} 12...
b6 {[%clk 0:04:15.3]} 13. c4 {[%clk 0:04:29]} 13... Nf6 {[%clk 0:04:09.5]} 14.
Bg5 {[%clk 0:04:27.5]} 14... Ng6 {[%clk 0:04:02.2]} 15. Be4 {[%clk 0:04:23.6]}
15... Rb8 {[%clk 0:03:53]} 16. Nc6 {[%clk 0:04:21]} 16... Qc7 {[%clk 0:03:47.9]}
17. Nxb8 {[%clk 0:04:17.5]} 17... Qxb8 {[%clk 0:03:47.8]} 18. Bxf6 {[%clk
0:04:14.8]} 18... gxf6 {[%clk 0:03:44.9]} 19. Rb3 {[%clk 0:04:12]} 19... f5
{[%clk 0:03:43.5]} 20. Bc6 {[%clk 0:04:04.2]} 20... Ba6 {[%clk 0:03:40.6]} 21.
Bb5 {[%clk 0:04:01.2]} 21... Bb7 {[%clk 0:03:38.7]} 22. h4 {[%clk 0:03:52.7]}
22... Rd8 {[%clk 0:03:35.4]} 23. h5 {[%clk 0:03:49.8]} 23... Rxd1 {[%clk
0:03:30.2]} 24. Rxd1 {[%clk 0:03:46.3]} 24... Nf4 {[%clk 0:03:17]} 25. h6 {[%clk
0:03:43]} 25... f6 {[%clk 0:02:58.9]} 26. Rg3+ {[%clk 0:03:39.3]} 26... Ng6
{[%clk 0:02:52.7]} 27. Rd7 {[%clk 0:03:37.1]} 27... f4 {[%clk 0:02:12.3]} 28.
Rgd3 {[%clk 0:03:35.3]} 28... Qe5 {[%clk 0:01:44.6]} 29. Rxb7 {[%clk 0:03:23.6]}
29... f3 {[%clk 0:01:21.5]} 30. Rd8+ {[%clk 0:03:21.6]} 30... Nf8 {[%clk
0:01:19.6]} 31. Rg7+ {[%clk 0:03:20.2]} 31... Kh8 {[%clk 0:01:18.6]} 32. Rxf8#
{[%clk 0:03:19.1]} 1-0

[Event "Live Chess"]
[Site "Chess.com"]
[Date "2024.06.01"]
[Round "-"]
[White "viktor_forever1994"]
[Black "alicechristina"]
[Result "0-1"]
[WhiteElo "1411"]
[BlackElo "1722"]
[TimeControl "300"]
[EndTime "9:39:38 PDT"]
[Termination "alicechristina won by resignation"]

1. e4 {[%clk 0:04:58.4]} 1... e5 {[%clk 0:04:59]} 2. Nf3 {[%clk 0:04:57.5]} 2...
Nf6 {[%clk 0:04:58]} 3. Nc3 {[%clk 0:04:54.5]} 3... Nc6 {[%clk 0:04:56.4]} 4. d4
{[%clk 0:04:49.9]} 4... exd4 {[%clk 0:04:54.9]} 5. Nxd4 {[%clk 0:04:49.8]} 5...
Bb4 {[%clk 0:04:53.9]} 6. Nxc6 {[%clk 0:04:45.4]} 6... bxc6 {[%clk 0:04:52.8]}
7. Qd4 {[%clk 0:04:41.3]} 7... a5 {[%clk 0:04:40.4]} 8. Bc4 {[%clk 0:04:26.1]}
8... O-O {[%clk 0:04:38.3]} 9. Bg5 {[%clk 0:04:18.8]} 9... d5 {[%clk 0:04:32.9]}
10. Bb3 {[%clk 0:03:50.5]} 10... c5 {[%clk 0:04:20.9]} 11. Bxf6 {[%clk
0:03:36.3]} 11... cxd4 {[%clk 0:04:18]} 12. Bxd8 {[%clk 0:03:34.4]} 12... dxc3
{[%clk 0:04:07.2]} 13. O-O-O {[%clk 0:03:20.5]} 13... Rxd8 {[%clk 0:04:02]} 14.
Bxd5 {[%clk 0:03:12.3]} 14... cxb2+ {[%clk 0:03:59]} 15. Kxb2 {[%clk 0:03:08.1]}
15... Rb8 {[%clk 0:03:58]} 16. Bxf7+ {[%clk 0:02:42.2]} 16... Kxf7 {[%clk
0:03:55.2]} 17. Rxd8 {[%clk 0:02:40.8]} 17... Be7+ {[%clk 0:03:53.7]} 18. Kc1
{[%clk 0:02:36.7]} 18... Bxd8 {[%clk 0:03:51.2]} 0-1

[Event "Live Chess"]
[Site "Chess.com"]
[Date "2024.06.01"]
[Round "-"]
[White "KwikPhoenix"]
[Black "degringolade64"]
[Result "1/2-1/2"]
[WhiteElo "2461"]
[BlackElo "2066"]
[TimeControl "300"]
[EndTime "9:39:58 PDT"]
[Termination "Game drawn by repetition"]

1. Nc3 {[%clk 0:04:59]} 1... d5 {[%clk 0:04:57.7]} 2. e4 {[%clk 0:04:58]} 2...
dxe4 {[%clk 0:04:53.1]} 3. Nxe4 {[%clk 0:04:56.6]} 3... Nf6 {[%clk 0:04:51.3]}
4. Nxf6+ {[%clk 0:04:54.9]} 4... exf6 {[%clk 0:04:51.2]} 5. d4 {[%clk
0:04:54.1]} 5... Bd6 {[%clk 0:04:46]} 6. Nf3 {[%clk 0:04:52.4]} 6... O-O {[%clk
0:04:44.3]} 7. Be2 {[%clk 0:04:51.9]} 7... Re8 {[%clk 0:04:40.5]} 8. O-O {[%clk
0:04:50]} 8... Nd7 {[%clk 0:04:35.9]} 9. c4 {[%clk 0:04:44.1]} 9... c6 {[%clk
0:04:34]} 10. h3 {[%clk 0:04:41.6]} 10... Nf8 {[%clk 0:04:31.7]} 11. b3 {[%clk
0:04:39.8]} 11... Ng6 {[%clk 0:04:28.4]} 12. Be3 {[%clk 0:04:36]} 12... Bf5
{[%clk 0:04:15.9]} 13. Bd3 {[%clk 0:04:31.2]} 13... Qd7 {[%clk 0:04:06.1]} 14.
Bxf5 {[%clk 0:04:08.1]} 14... Qxf5 {[%clk 0:04:06]} 15. Qb1 {[%clk 0:04:05.6]}
15... Qh5 {[%clk 0:03:42.5]} 16. Qd3 {[%clk 0:03:57.9]} 16... Re7 {[%clk
0:03:35]} 17. Rae1 {[%clk 0:03:49.7]} 17... Rae8 {[%clk 0:03:33.1]} 18. Bc1
{[%clk 0:03:41.6]} 18... Bb4 {[%clk 0:03:08.5]} 19. Bd2 {[%clk 0:03:21]} 19...
Bxd2 {[%clk 0:03:00.2]} 20. Qxd2 {[%clk 0:03:17.6]} 20... Qf5 {[%clk 0:02:59.1]}
21. Rxe7 {[%clk 0:03:13.1]} 21... Rxe7 {[%clk 0:02:59]} 22. Re1 {[%clk
0:03:12.2]} 22... h5 {[%clk 0:02:55]} 23. Rxe7 {[%clk 0:03:09.9]} 23... Nxe7
{[%clk 0:02:54.9]} 24. Qe2 {[%clk 0:03:06.5]} 24... Kf8 {[%clk 0:02:53.3]} 25.
Nd2 {[%clk 0:02:50.1]} 25... g6 {[%clk 0:02:41.7]} 26. Qe4 {[%clk 0:02:35.6]}
26... Qa5 {[%clk 0:02:40.4]} 27. Qc2 {[%clk 0:02:32.6]} 27... Nf5 {[%clk
0:02:34.3]} 28. Nf3 {[%clk 0:02:30.9]} 28... Kg7 {[%clk 0:02:16]} 29. Qb2 {[%clk
0:02:25.3]} 29... Qd8 {[%clk 0:02:06.1]} 30. a3 {[%clk 0:02:19.2]} 30... Qe7
{[%clk 0:02:02]} 31. b4 {[%clk 0:02:10.6]} 31... g5 {[%clk 0:01:56.1]} 32. Qd2
{[%clk 0:01:58.1]} 32... g4 {[%clk 0:01:52.1]} 33. hxg4 {[%clk 0:01:55]} 33...
hxg4 {[%clk 0:01:52]} 34. Ne1 {[%clk 0:01:54.7]} 34... Qe4 {[%clk 0:01:44.6]}
35. Nc2 {[%clk 0:01:47.5]} 35... Nh4 {[%clk 0:01:30.9]} 36. Ne3 {[%clk
0:01:40.6]} 36... f5 {[%clk 0:01:26.2]} 37. Qc2 {[%clk 0:01:16]} 37... Qxd4
{[%clk 0:01:12.2]} 38. Nxf5+ {[%clk 0:01:15.1]} 38... Nxf5 {[%clk 0:01:10.4]}
39. Qxf5 {[%clk 0:01:15]} 39... Qxc4 {[%clk 0:01:05.6]} 40. Qg5+ {[%clk
0:01:14.3]} 40... Kf8 {[%clk 0:01:03.1]} 41. Qd8+ {[%clk 0:01:13]} 41... Kg7
{[%clk 0:01:02.4]} 42. Qg5+ {[%clk 0:01:09.4]} 42... Kf8 {[%clk 0:01:01.4]} 43.
g3 {[%clk 0:00:57.9]} 43... Qe4 {[%clk 0:00:55.1]} 44. Qd8+ {[%clk 0:00:52.2]}
44... Kg7 {[%clk 0:00:53.2]} 45. Qg5+ {[%clk 0:00:51]} 45... Kf8 {[%clk
0:00:46.7]} 46. Qd8+ {[%clk 0:00:50]} 46... Kg7 {[%clk 0:00:41.7]} 47. Qg5+
{[%clk 0:00:49.3]} 47... Kf8 {[%clk 0:00:40.3]} 1/2-1/2

[Event "Live Chess"]
[Site "Chess.com"]
[Date "2024.06.01"]
[Round "-"]
[White "KeithArkell"]
[Black "Berdgross"]
[Result "1-0"]
[WhiteElo "2514"]
[BlackElo "579"]
[TimeControl "300"]
[EndTime "9:39:58 PDT"]
[Termination "KeithArkell won by resignation"]

1. d4 {[%clk 0:04:54.8]} 1... d5 {[%clk 0:04:59.9]} 2. Nf3 {[%clk 0:04:53.7]}
2... e6 {[%clk 0:04:59.8]} 3. c4 {[%clk 0:04:52.9]} 3... Nf6 {[%clk 0:04:59.1]}
4. cxd5 {[%clk 0:04:52.5]} 4... Qxd5 {[%clk 0:04:58]} 5. Nc3 {[%clk 0:04:51.8]}
5... Qd8 {[%clk 0:04:56.9]} 6. e4 {[%clk 0:04:51.2]} 6... Bb4 {[%clk 0:04:52.5]}
7. Qa4+ {[%clk 0:04:49.9]} 7... Nc6 {[%clk 0:04:48]} 8. Bg5 {[%clk 0:04:46.8]}
8... h6 {[%clk 0:04:39.8]} 9. Bxf6 {[%clk 0:04:45.7]} 9... Qxf6 {[%clk
0:04:35.8]} 10. Bb5 {[%clk 0:04:45.2]} 10... Bxc3+ {[%clk 0:04:32.6]} 11. bxc3
{[%clk 0:04:45.1]} 11... Bd7 {[%clk 0:04:24.2]} 12. Ne5 {[%clk 0:04:42.8]} 12...
Nxe5 {[%clk 0:04:20.5]} 13. dxe5 {[%clk 0:04:41.9]} 13... Qxe5 {[%clk
0:04:13.5]} 14. Bxd7+ {[%clk 0:04:40.2]} 14... Ke7 {[%clk 0:04:11.1]} 15. O-O
{[%clk 0:04:35.7]} 15... c6 {[%clk 0:04:02.1]} 16. Rfd1 {[%clk 0:04:32.6]} 16...
Rhd8 {[%clk 0:03:57.4]} 17. Qb4+ {[%clk 0:04:31.8]} 17... Kf6 {[%clk 0:03:54.1]}
18. Qxb7 {[%clk 0:04:26.9]} 18... Qxc3 {[%clk 0:03:46.1]} 19. Qxc6 {[%clk
0:04:21.2]} 19... Qxc6 {[%clk 0:03:40]} 20. Bxc6 {[%clk 0:04:20]} 20... Rxd1+
{[%clk 0:03:38.4]} 21. Rxd1 {[%clk 0:04:18.4]} 21... Rc8 {[%clk 0:03:34.4]} 22.
Ba4 {[%clk 0:04:16.3]} 22... Rc4 {[%clk 0:03:29.6]} 23. Bb3 {[%clk 0:04:11.8]}
23... Rxe4 {[%clk 0:03:26.6]} 24. g3 {[%clk 0:04:11.2]} 24... g5 {[%clk
0:03:16.2]} 25. Rd7 {[%clk 0:04:04.3]} 25... a5 {[%clk 0:03:13.3]} 26. Ra7
{[%clk 0:04:02.6]} 26... Re1+ {[%clk 0:03:07.4]} 27. Kg2 {[%clk 0:04:01.6]}
27... Re5 {[%clk 0:02:56.6]} 28. Ba4 {[%clk 0:04:00.2]} 28... h5 {[%clk
0:02:49.5]} 29. Be8 {[%clk 0:03:52]} 29... Re2 {[%clk 0:02:29.5]} 30. Rxa5
{[%clk 0:03:49.4]} 30... Ke7 {[%clk 0:02:24.1]} 31. Bb5 {[%clk 0:03:47.6]} 31...
Re5 {[%clk 0:02:18.8]} 32. Ra7+ {[%clk 0:03:46.6]} 32... Kd6 {[%clk 0:02:14.3]}
33. Bc4 {[%clk 0:03:45]} 33... Rc5 {[%clk 0:02:06.5]} 34. Be2 {[%clk 0:03:42]}
34... Rc2 {[%clk 0:02:00.2]} 35. Bxh5 {[%clk 0:03:39.7]} 35... Rxa2 {[%clk
0:01:58.6]} 36. Rxa2 {[%clk 0:03:37.8]} 1-0

[Event "Live Chess"]
[Site "Chess.com"]
[Date "2024.06.01"]
[Round "-"]
[White "Nathaniel250"]
[Black "IanCalvert2"]
[Result "1-0"]
[WhiteElo "1470"]
[BlackElo "1544"]
[TimeControl "300"]
[EndTime "9:40:02 PDT"]
[Termination "Nathaniel250 won by resignation"]

1. c4 {[%clk 0:04:57.7]} 1... c6 {[%clk 0:04:53.3]} 2. e4 {[%clk 0:04:55]} 2...
d5 {[%clk 0:04:50.4]} 3. cxd5 {[%clk 0:04:54.1]} 3... cxd5 {[%clk 0:04:49.3]} 4.
exd5 {[%clk 0:04:54]} 4... Nf6 {[%clk 0:04:47.7]} 5. Nc3 {[%clk 0:04:52.5]} 5...
Nxd5 {[%clk 0:04:40]} 6. d4 {[%clk 0:04:51.2]} 6... Nxc3 {[%clk 0:04:37.9]} 7.
bxc3 {[%clk 0:04:51.1]} 7... g6 {[%clk 0:04:36.1]} 8. Nf3 {[%clk 0:04:49]} 8...
Bg7 {[%clk 0:04:35]} 9. Bb5+ {[%clk 0:04:47.3]} 9... Bd7 {[%clk 0:04:33.1]} 10.
Bxd7+ {[%clk 0:04:43.1]} 10... Qxd7 {[%clk 0:04:25.1]} 11. O-O {[%clk
0:04:41.3]} 11... O-O {[%clk 0:04:22]} 12. Be3 {[%clk 0:04:39.2]} 12... Nc6
{[%clk 0:04:18.3]} 13. Qd2 {[%clk 0:04:37.3]} 13... e5 {[%clk 0:04:02.9]} 14.
Bh6 {[%clk 0:04:33.7]} 14... exd4 {[%clk 0:03:58.1]} 15. Bxg7 {[%clk 0:04:31.4]}
15... Kxg7 {[%clk 0:03:54.6]} 16. cxd4 {[%clk 0:04:30]} 16... Rad8 {[%clk
0:03:49.9]} 17. Rfd1 {[%clk 0:04:24.1]} 17... Rfe8 {[%clk 0:03:45.3]} 18. Rab1
{[%clk 0:04:18.7]} 18... b6 {[%clk 0:03:42.3]} 19. Rbc1 {[%clk 0:04:15.8]} 19...
Re4 {[%clk 0:03:19.6]} 20. Qc3 {[%clk 0:04:02.3]} 20... Ne7 {[%clk 0:03:03.5]}
21. Rc2 {[%clk 0:03:47.2]} 21... Nd5 {[%clk 0:02:58.6]} 22. Qd3 {[%clk
0:03:38.2]} 22... Rde8 {[%clk 0:02:55]} 23. Qc4 {[%clk 0:03:27.5]} 23... Nf4
{[%clk 0:02:29.2]} 24. Ne5 {[%clk 0:03:14.5]} 24... Qd5 {[%clk 0:02:19.2]} 25.
Qxd5 {[%clk 0:03:04.1]} 25... Nxd5 {[%clk 0:02:15.1]} 26. f3 {[%clk 0:02:56.2]}
26... Re3 {[%clk 0:02:04.9]} 27. Rd3 {[%clk 0:02:38.5]} 27... Rxd3 {[%clk
0:01:59.5]} 28. Nxd3 {[%clk 0:02:38.4]} 28... Re3 {[%clk 0:01:54.4]} 29. Rd2
{[%clk 0:02:26.8]} 29... f6 {[%clk 0:01:52.2]} 30. Kf2 {[%clk 0:02:22.4]} 30...
Re7 {[%clk 0:01:50]} 31. a3 {[%clk 0:02:13]} 31... Rc7 {[%clk 0:01:44.8]} 32.
Nb4 {[%clk 0:02:06.1]} 32... Nxb4 {[%clk 0:01:41.8]} 33. axb4 {[%clk 0:02:06]}
33... Kf7 {[%clk 0:01:39.5]} 34. d5 {[%clk 0:02:04.7]} 34... Ke7 {[%clk
0:01:37.8]} 35. d6+ {[%clk 0:02:02.8]} 1-0

[Event "Live Chess"]
[Site "Chess.com"]
[Date "2024.06.01"]
[Round "-"]
[White "NottheBishopSacrifice"]
[Black "DJ_Lambton"]
[Result "1-0"]
[WhiteElo "2145"]
[BlackElo "1748"]
[TimeControl "300"]
[EndTime "9:40:08 PDT"]
[Termination "NottheBishopSacrifice won by resignation"]

1. Nf3 {[%clk 0:04:57.9]} 1... c6 {[%clk 0:04:59.9]} 2. g3 {[%clk 0:04:56.9]}
2... d5 {[%clk 0:04:59.8]} 3. Bg2 {[%clk 0:04:56.7]} 3... Nf6 {[%clk 0:04:59.2]}
4. O-O {[%clk 0:04:55]} 4... Bf5 {[%clk 0:04:58.6]} 5. d4 {[%clk 0:04:54.9]}
5... Nbd7 {[%clk 0:04:57.9]} 6. c4 {[%clk 0:04:54.5]} 6... e6 {[%clk 0:04:57.1]}
7. Nc3 {[%clk 0:04:53.9]} 7... Be7 {[%clk 0:04:56.6]} 8. Qb3 {[%clk 0:04:53.2]}
8... Qb6 {[%clk 0:04:55]} 9. c5 {[%clk 0:04:52.7]} 9... Qxb3 {[%clk 0:04:54.2]}
10. axb3 {[%clk 0:04:52.6]} 10... O-O {[%clk 0:04:53.4]} 11. b4 {[%clk
0:04:52.1]} 11... b6 {[%clk 0:04:50.1]} 12. Bf4 {[%clk 0:04:48.1]} 12... a5
{[%clk 0:04:47.8]} 13. bxa5 {[%clk 0:04:44.9]} 13... bxc5 {[%clk 0:04:45.6]} 14.
dxc5 {[%clk 0:04:43.9]} 14... Nxc5 {[%clk 0:04:45]} 15. b4 {[%clk 0:04:43.1]}
15... Nb3 {[%clk 0:04:41.6]} 16. Ra3 {[%clk 0:04:41.6]} 16... Bxb4 {[%clk
0:04:35.8]} 17. Rxb3 {[%clk 0:04:40.3]} 17... Bxa5 {[%clk 0:04:34.4]} 18. Na4
{[%clk 0:04:36.7]} 18... Rfc8 {[%clk 0:04:33.4]} 19. Nc5 {[%clk 0:04:35.2]}
19... Bd8 {[%clk 0:04:31.3]} 20. Nd4 {[%clk 0:04:33.7]} 20... Bg6 {[%clk
0:04:28.4]} 21. Rc1 {[%clk 0:04:29.1]} 21... Be7 {[%clk 0:04:27.6]} 22. Rb7
{[%clk 0:04:26.8]} 22... Bxc5 {[%clk 0:04:26.3]} 23. Rxc5 {[%clk 0:04:26.1]}
23... Ra4 {[%clk 0:04:24.2]} 24. Nxc6 {[%clk 0:04:20.5]} 24... Rca8 {[%clk
0:04:12.8]} 25. Ne7+ {[%clk 0:04:17.4]} 25... Kh8 {[%clk 0:04:12.1]} 26. Nxg6+
{[%clk 0:04:16.9]} 26... hxg6 {[%clk 0:04:11.2]} 27. Rb8+ {[%clk 0:04:15.6]}
27... Rxb8 {[%clk 0:04:10.2]} 28. Bxb8 {[%clk 0:04:15.5]} 28... Ra1+ {[%clk
0:04:09.1]} 29. Bf1 {[%clk 0:04:13.7]} 29... Ne4 {[%clk 0:04:08.5]} 30. Rc8+
{[%clk 0:04:12.1]} 30... Kh7 {[%clk 0:04:07.7]} 31. Kg2 {[%clk 0:04:11.6]} 31...
Nd2 {[%clk 0:04:06.2]} 32. Rc7 {[%clk 0:04:07.7]} 32... Nxf1 {[%clk 0:04:04.5]}
33. Rxf7 {[%clk 0:04:04.9]} 33... Nd2 {[%clk 0:04:04]} 34. Be5 {[%clk 0:04:04]}
34... Ne4 {[%clk 0:04:02.4]} 35. Rxg7+ {[%clk 0:04:00.4]} 35... Kh6 {[%clk
0:04:01.6]} 36. Bxa1 {[%clk 0:03:59.4]} 1-0